[Event "Early-Titled-Tuesday-Blitz-February-20-2024"]
[Site "Chess.com"]
[Date "2024.02.20"]
[Round "5"]
[White "Kostya0705"]
[Black "alpope"]
[Result "0-1"]
[WhiteElo "2612"]
[BlackElo "2511"]
[TimeControl "180+1"]
[EndTime "8:51:23 PST"]
[Termination "alpope won by resignation"]

1. e4 {[%clk 0:03:00.9]} 1... g6 {[%clk 0:02:55.7]} 2. d4 {[%clk 0:03:00.5]}
2... Bg7 {[%clk 0:02:54.8]} 3. Nc3 {[%clk 0:03:01.4]} 3... d6 {[%clk 0:02:54.9]}
4. h4 {[%clk 0:03:01.1]} 4... h6 {[%clk 0:02:53.6]} 5. Be3 {[%clk 0:03:00.7]}
5... a6 {[%clk 0:02:53]} 6. g4 {[%clk 0:02:58.1]} 6... b5 {[%clk 0:02:51.9]} 7.
a3 {[%clk 0:02:51.1]} 7... Bb7 {[%clk 0:02:51.4]} 8. Bg2 {[%clk 0:02:46.9]} 8...
Nd7 {[%clk 0:02:51.2]} 9. g5 {[%clk 0:02:44.2]} 9... hxg5 {[%clk 0:02:43.1]} 10.
Bxg5 {[%clk 0:02:43.7]} 10... c5 {[%clk 0:02:36.6]} 11. dxc5 {[%clk 0:02:42.6]}
11... Nxc5 {[%clk 0:02:34.8]} 12. Qd2 {[%clk 0:02:43]} 12... Nf6 {[%clk
0:02:19.8]} 13. O-O-O {[%clk 0:02:23]} 13... Nfxe4 {[%clk 0:02:12.3]} 14. Nxe4
{[%clk 0:02:22]} 14... Bxe4 {[%clk 0:02:12.6]} 15. Nf3 {[%clk 0:02:08.1]} 15...
Nb3+ {[%clk 0:02:11]} 0-1

[Event "Early-Titled-Tuesday-Blitz-February-20-2024"]
[Site "Chess.com"]
[Date "2024.02.20"]
[Round "5"]
[White "zajka-molotok"]
[Black "sotochess"]
[Result "0-1"]
[WhiteElo "2499"]
[BlackElo "2629"]
[TimeControl "180+1"]
[EndTime "8:52:15 PST"]
[Termination "sotochess won by resignation"]

1. e4 {[%clk 0:02:52.7]} 1... d5 {[%clk 0:02:57.4]} 2. exd5 {[%clk 0:02:51.5]}
2... Qxd5 {[%clk 0:02:58.3]} 3. Nc3 {[%clk 0:02:51.9]} 3... Qa5 {[%clk
0:02:57.5]} 4. d4 {[%clk 0:02:52.1]} 4... c6 {[%clk 0:02:57.5]} 5. Nf3 {[%clk
0:02:51.2]} 5... Nf6 {[%clk 0:02:57.2]} 6. Bc4 {[%clk 0:02:50.7]} 6... Bg4
{[%clk 0:02:56.8]} 7. h3 {[%clk 0:02:49.8]} 7... Bh5 {[%clk 0:02:56.6]} 8. g4
{[%clk 0:02:49.8]} 8... Bg6 {[%clk 0:02:56.4]} 9. Ne5 {[%clk 0:02:50.3]} 9...
Nbd7 {[%clk 0:02:56.9]} 10. f4 {[%clk 0:02:45.1]} 10... Nxe5 {[%clk 0:02:56.7]}
11. dxe5 {[%clk 0:02:38.4]} 11... Ne4 {[%clk 0:02:56.5]} 12. f5 {[%clk
0:02:11.8]} 12... Nxc3 {[%clk 0:02:55.6]} 13. Qd2 {[%clk 0:02:12.1]} 13... Qxe5+
{[%clk 0:02:54.2]} 14. Qe3 {[%clk 0:02:07.3]} 14... Qxe3+ {[%clk 0:02:43.7]} 15.
Bxe3 {[%clk 0:02:08.2]} 15... Bxf5 {[%clk 0:02:43.6]} 16. gxf5 {[%clk
0:02:07.3]} 16... Ne4 {[%clk 0:02:42.9]} 17. O-O-O {[%clk 0:02:02.9]} 17... Ng3
{[%clk 0:02:40.6]} 18. Rhe1 {[%clk 0:01:51.1]} 18... Nxf5 {[%clk 0:02:39.9]} 19.
Bc5 {[%clk 0:01:49]} 19... e6 {[%clk 0:02:38.8]} 20. Bf2 {[%clk 0:01:35.5]}
20... Bb4 {[%clk 0:02:35.5]} 21. c3 {[%clk 0:01:35.2]} 21... Be7 {[%clk
0:02:34.9]} 22. Bd3 {[%clk 0:01:34.5]} 22... g6 {[%clk 0:02:30.3]} 23. h4 {[%clk
0:01:29.6]} 23... Bxh4 {[%clk 0:02:24]} 0-1

[Event "Early-Titled-Tuesday-Blitz-February-20-2024"]
[Site "Chess.com"]
[Date "2024.02.20"]
[Round "5"]
[White "guillembaches"]
[Black "le-castor-faineant"]
[Result "1-0"]
[WhiteElo "2526"]
[BlackElo "2284"]
[TimeControl "180+1"]
[EndTime "8:52:16 PST"]
[Termination "guillembaches won by resignation"]

1. e4 {[%clk 0:02:53.9]} 1... e5 {[%clk 0:02:59.8]} 2. Nf3 {[%clk 0:02:54]} 2...
Nf6 {[%clk 0:02:59.4]} 3. Nc3 {[%clk 0:02:54.6]} 3... Nc6 {[%clk 0:02:57.8]} 4.
d4 {[%clk 0:02:54.7]} 4... Bb4 {[%clk 0:02:56.7]} 5. Nxe5 {[%clk 0:02:54.4]}
5... Nxe4 {[%clk 0:02:53.8]} 6. Qg4 {[%clk 0:02:31.2]} 6... Nxc3 {[%clk
0:02:46.2]} 7. Qxg7 {[%clk 0:02:30.6]} 7... Rf8 {[%clk 0:02:45.8]} 8. a3 {[%clk
0:02:11.5]} 8... Nd5+ {[%clk 0:02:21.6]} 9. axb4 {[%clk 0:02:07.6]} 9... d6
{[%clk 0:02:21.8]} 10. Bh6 {[%clk 0:01:55.7]} 10... Qe7 {[%clk 0:02:16.2]} 11.
Qxf8+ {[%clk 0:01:54.5]} 11... Qxf8 {[%clk 0:02:17.1]} 12. Bxf8 {[%clk
0:01:54.6]} 12... Kxf8 {[%clk 0:02:18]} 13. Nxc6 {[%clk 0:01:51.9]} 13... bxc6
{[%clk 0:02:18.9]} 14. c3 {[%clk 0:01:50.9]} 14... Bf5 {[%clk 0:02:14.8]} 15.
Kd2 {[%clk 0:01:49.7]} 15... Nb6 {[%clk 0:02:11.8]} 16. Bd3 {[%clk 0:01:48.5]}
16... Be6 {[%clk 0:02:11.3]} 17. Ra5 {[%clk 0:01:41]} 17... Nd5 {[%clk
0:02:11.1]} 18. Rha1 {[%clk 0:01:37]} 18... Nf4 {[%clk 0:02:10.9]} 19. g3 {[%clk
0:01:34.3]} 19... Nh3 {[%clk 0:02:09.4]} 20. f4 {[%clk 0:01:27.4]} 1-0

[Event "Early-Titled-Tuesday-Blitz-February-20-2024"]
[Site "Chess.com"]
[Date "2024.02.20"]
[Round "5"]
[White "Lion-Al-Messi"]
[Black "mertfelin"]
[Result "1-0"]
[WhiteElo "2543"]
[BlackElo "2343"]
[TimeControl "180+1"]
[EndTime "8:52:43 PST"]
[Termination "Lion-Al-Messi won by resignation"]

1. e4 {[%clk 0:03:00.9]} 1... e5 {[%clk 0:02:59.1]} 2. Nf3 {[%clk 0:03:01]} 2...
Nc6 {[%clk 0:02:59.6]} 3. Bb5 {[%clk 0:03:01.3]} 3... a6 {[%clk 0:03:00.2]} 4.
Ba4 {[%clk 0:03:01.7]} 4... Nf6 {[%clk 0:03:00.8]} 5. O-O {[%clk 0:03:02.1]}
5... d6 {[%clk 0:03:01.5]} 6. c3 {[%clk 0:02:58.5]} 6... Bd7 {[%clk 0:03:00.9]}
7. d4 {[%clk 0:02:57.8]} 7... Nxe4 {[%clk 0:03:00.7]} 8. Re1 {[%clk 0:02:47.6]}
8... Nf6 {[%clk 0:03:01]} 9. Bxc6 {[%clk 0:02:41.4]} 9... Bxc6 {[%clk
0:02:51.5]} 10. dxe5 {[%clk 0:02:41.4]} 10... dxe5 {[%clk 0:02:51.8]} 11. Qxd8+
{[%clk 0:02:40.7]} 11... Rxd8 {[%clk 0:02:47.4]} 12. Nxe5 {[%clk 0:02:41.6]}
12... Be7 {[%clk 0:02:47.8]} 13. Nxc6 {[%clk 0:02:37.6]} 13... bxc6 {[%clk
0:02:47.4]} 14. Bf4 {[%clk 0:02:36.1]} 14... Nd5 {[%clk 0:02:46.3]} 15. Bg3
{[%clk 0:02:36.1]} 15... Rd7 {[%clk 0:02:44.4]} 16. Na3 {[%clk 0:02:34.8]} 16...
f6 {[%clk 0:02:39.5]} 17. Re6 {[%clk 0:02:31.6]} 17... Kf7 {[%clk 0:02:33.7]}
18. Rxc6 {[%clk 0:02:31]} 18... Rb8 {[%clk 0:02:34.5]} 19. Nc4 {[%clk 0:02:30]}
19... a5 {[%clk 0:02:31.3]} 20. h3 {[%clk 0:02:27.7]} 20... a4 {[%clk
0:02:31.5]} 21. Re1 {[%clk 0:02:25.3]} 21... a3 {[%clk 0:02:28.4]} 22. bxa3
{[%clk 0:02:24.4]} 22... Ra8 {[%clk 0:02:14.5]} 23. Rd1 {[%clk 0:02:15.3]} 23...
Rad8 {[%clk 0:01:57.1]} 24. Ne3 {[%clk 0:01:58.2]} 24... Nxc3 {[%clk 0:01:50.2]}
25. Rxd7 {[%clk 0:01:48]} 25... Ne2+ {[%clk 0:01:50.7]} 26. Kh2 {[%clk
0:01:44.5]} 26... Rxd7 {[%clk 0:01:51.4]} 27. Rxc7 {[%clk 0:01:40.7]} 27... Rd2
{[%clk 0:01:51.8]} 28. Nf5 {[%clk 0:01:36.1]} 28... Ke6 {[%clk 0:01:49.8]} 29.
Nxe7 {[%clk 0:01:34.1]} 1-0

[Event "Early-Titled-Tuesday-Blitz-February-20-2024"]
[Site "Chess.com"]
[Date "2024.02.20"]
[Round "5"]
[White "AlexTruskavetsky"]
[Black "ATM622"]
[Result "1-0"]
[WhiteElo "2719"]
[BlackElo "2498"]
[TimeControl "180+1"]
[EndTime "8:53:06 PST"]
[Termination "AlexTruskavetsky won by resignation"]

1. d4 {[%clk 0:03:00.9]} 1... Nf6 {[%clk 0:02:57.6]} 2. c4 {[%clk 0:03:00.2]}
2... e6 {[%clk 0:02:57.3]} 3. Nc3 {[%clk 0:03:00.3]} 3... Bb4 {[%clk 0:02:56.9]}
4. e3 {[%clk 0:03:00.6]} 4... O-O {[%clk 0:02:56.4]} 5. a3 {[%clk 0:03:00.4]}
5... Bxc3+ {[%clk 0:02:56.3]} 6. bxc3 {[%clk 0:03:01.3]} 6... d5 {[%clk
0:02:55.9]} 7. cxd5 {[%clk 0:03:01.8]} 7... exd5 {[%clk 0:02:55.5]} 8. Bd3
{[%clk 0:03:01.9]} 8... Bg4 {[%clk 0:02:55.3]} 9. f3 {[%clk 0:03:01.9]} 9... Bh5
{[%clk 0:02:55.7]} 10. Ne2 {[%clk 0:03:02.2]} 10... Bg6 {[%clk 0:02:52.3]} 11.
O-O {[%clk 0:03:02]} 11... Nbd7 {[%clk 0:02:51.1]} 12. Rb1 {[%clk 0:03:01.3]}
12... Rb8 {[%clk 0:02:46.2]} 13. Ng3 {[%clk 0:03:01.2]} 13... c5 {[%clk
0:02:42.9]} 14. e4 {[%clk 0:02:56.9]} 14... cxd4 {[%clk 0:02:40.2]} 15. cxd4
{[%clk 0:02:57.8]} 15... Nh5 {[%clk 0:02:19.3]} 16. Nxh5 {[%clk 0:02:51.5]}
16... Bxh5 {[%clk 0:02:18.9]} 17. e5 {[%clk 0:02:52]} 17... Bg6 {[%clk
0:02:13.7]} 18. f4 {[%clk 0:02:51.9]} 18... Bxd3 {[%clk 0:02:11.7]} 19. Qxd3
{[%clk 0:02:52.8]} 19... f5 {[%clk 0:02:11.7]} 20. g4 {[%clk 0:02:50.9]} 20...
Qh4 {[%clk 0:02:08.8]} 21. gxf5 {[%clk 0:02:42.6]} 21... Qg4+ {[%clk 0:02:01.4]}
22. Kh1 {[%clk 0:02:42.8]} 22... Rxf5 {[%clk 0:01:57]} 23. Rg1 {[%clk
0:02:42.7]} 23... Qh5 {[%clk 0:01:52.5]} 24. Bd2 {[%clk 0:02:33.5]} 24... b5
{[%clk 0:01:41.6]} 25. Rg3 {[%clk 0:02:17.8]} 25... a6 {[%clk 0:01:33.5]} 26. a4
{[%clk 0:02:15.9]} 26... h6 {[%clk 0:01:12.5]} 27. Rbg1 {[%clk 0:02:10.3]} 27...
Nf8 {[%clk 0:00:55.2]} 28. Rxg7+ {[%clk 0:02:09.4]} 28... Kh8 {[%clk 0:00:55.1]}
29. Rg8+ {[%clk 0:02:09.9]} 1-0

[Event "Early-Titled-Tuesday-Blitz-February-20-2024"]
[Site "Chess.com"]
[Date "2024.02.20"]
[Round "5"]
[White "Shield12"]
[Black "Tocras"]
[Result "1-0"]
[WhiteElo "2974"]
[BlackElo "2712"]
[TimeControl "180+1"]
[EndTime "8:53:11 PST"]
[Termination "Shield12 won by resignation"]

1. e4 {[%clk 0:03:00.9]} 1... c5 {[%clk 0:02:57.2]} 2. Nf3 {[%clk 0:03:01.2]}
2... Nc6 {[%clk 0:02:54.7]} 3. Bb5 {[%clk 0:03:00.7]} 3... e6 {[%clk 0:02:54.1]}
4. Bxc6 {[%clk 0:03:00.6]} 4... bxc6 {[%clk 0:02:55]} 5. d3 {[%clk 0:03:01.5]}
5... Ne7 {[%clk 0:02:54.7]} 6. Ng5 {[%clk 0:03:02]} 6... f6 {[%clk 0:02:50.2]}
7. Nh3 {[%clk 0:03:00.8]} 7... d5 {[%clk 0:02:49.2]} 8. O-O {[%clk 0:03:00.1]}
8... Ng6 {[%clk 0:02:48.7]} 9. f4 {[%clk 0:02:57]} 9... Bd6 {[%clk 0:02:29.6]}
10. c4 {[%clk 0:02:54.9]} 10... O-O {[%clk 0:02:26.2]} 11. Qe2 {[%clk 0:02:55]}
11... f5 {[%clk 0:02:08.9]} 12. e5 {[%clk 0:02:53.6]} 12... Be7 {[%clk
0:02:08.2]} 13. Nc3 {[%clk 0:02:52.8]} 13... Nh8 {[%clk 0:01:57.9]} 14. Na4
{[%clk 0:02:51.1]} 14... Nf7 {[%clk 0:01:52.4]} 15. b3 {[%clk 0:02:50.1]} 15...
h6 {[%clk 0:01:38.6]} 16. Ba3 {[%clk 0:02:49.1]} 16... g5 {[%clk 0:01:26]} 17.
Bxc5 {[%clk 0:02:47.2]} 17... dxc4 {[%clk 0:01:10.3]} 18. dxc4 {[%clk
0:02:41.6]} 18... Bxc5+ {[%clk 0:00:48.8]} 19. Nxc5 {[%clk 0:02:42.5]} 19...
Qd4+ {[%clk 0:00:49.4]} 20. Qf2 {[%clk 0:02:42.2]} 20... Qxf2+ {[%clk
0:00:49.5]} 21. Kxf2 {[%clk 0:02:40.2]} 21... gxf4 {[%clk 0:00:48.2]} 22. Rfe1
{[%clk 0:02:36.7]} 22... Ng5 {[%clk 0:00:43.8]} 23. Nxf4 {[%clk 0:02:35.1]}
23... Ne4+ {[%clk 0:00:43.3]} 24. Nxe4 {[%clk 0:02:33.1]} 24... fxe4 {[%clk
0:00:44.2]} 25. Rxe4 {[%clk 0:02:29.5]} 25... c5 {[%clk 0:00:42.2]} 26. g3
{[%clk 0:02:28.8]} 26... Bb7 {[%clk 0:00:42.2]} 27. Ree1 {[%clk 0:02:28.8]} 1-0

[Event "Early-Titled-Tuesday-Blitz-February-20-2024"]
[Site "Chess.com"]
[Date "2024.02.20"]
[Round "5"]
[White "ChessLover0108"]
[Black "sofaceindisguise"]
[Result "1-0"]
[WhiteElo "2967"]
[BlackElo "2672"]
[TimeControl "180+1"]
[EndTime "8:53:24 PST"]
[Termination "ChessLover0108 won by resignation"]

1. Nf3 {[%clk 0:03:00.9]} 1... d5 {[%clk 0:02:59]} 2. d4 {[%clk 0:03:00.4]} 2...
e6 {[%clk 0:02:58.7]} 3. e3 {[%clk 0:03:00.7]} 3... Nf6 {[%clk 0:02:59.6]} 4.
Bd3 {[%clk 0:03:01.4]} 4... Be7 {[%clk 0:03:00.5]} 5. O-O {[%clk 0:03:02]} 5...
O-O {[%clk 0:03:01.4]} 6. b3 {[%clk 0:03:02.8]} 6... b6 {[%clk 0:03:02.2]} 7.
Bb2 {[%clk 0:03:03.5]} 7... Bb7 {[%clk 0:03:03.1]} 8. Nbd2 {[%clk 0:03:04.3]}
8... Nbd7 {[%clk 0:03:03.1]} 9. Qe2 {[%clk 0:03:03.7]} 9... c5 {[%clk
0:03:03.7]} 10. e4 {[%clk 0:03:00.4]} 10... dxe4 {[%clk 0:03:03.6]} 11. Nxe4
{[%clk 0:03:01.3]} 11... cxd4 {[%clk 0:03:03.8]} 12. Bxd4 {[%clk 0:02:51.8]}
12... Nxe4 {[%clk 0:03:00.9]} 13. Bxe4 {[%clk 0:02:52.7]} 13... Bxe4 {[%clk
0:03:01.3]} 14. Qxe4 {[%clk 0:02:53.6]} 14... Bf6 {[%clk 0:03:00.7]} 15. Rad1
{[%clk 0:02:43.4]} 15... Qc7 {[%clk 0:02:56.5]} 16. c4 {[%clk 0:02:18.6]} 16...
Bxd4 {[%clk 0:02:23.7]} 17. Rxd4 {[%clk 0:02:19.5]} 17... Nf6 {[%clk 0:02:24.1]}
18. Qe3 {[%clk 0:01:56.4]} 18... Rfd8 {[%clk 0:02:23.3]} 19. Rfd1 {[%clk
0:01:55.7]} 19... Rxd4 {[%clk 0:02:22.7]} 20. Qxd4 {[%clk 0:01:56.6]} 20... h6
{[%clk 0:02:22]} 21. Ne5 {[%clk 0:01:47.5]} 21... Rc8 {[%clk 0:02:18.9]} 22. h4
{[%clk 0:01:41.8]} 22... Qe7 {[%clk 0:02:08.1]} 23. g4 {[%clk 0:01:24]} 23...
Nh7 {[%clk 0:01:35.8]} 24. Qd7 {[%clk 0:01:22.4]} 24... Qxd7 {[%clk 0:01:26.9]}
25. Rxd7 {[%clk 0:01:23.3]} 25... Rc5 {[%clk 0:01:20.7]} 26. Rd8+ {[%clk
0:01:22.3]} 1-0

[Event "Early-Titled-Tuesday-Blitz-February-20-2024"]
[Site "Chess.com"]
[Date "2024.02.20"]
[Round "5"]
[White "2KTNGO"]
[Black "Larina_Maria"]
[Result "1-0"]
[WhiteElo "2525"]
[BlackElo "2281"]
[TimeControl "180+1"]
[EndTime "8:53:45 PST"]
[Termination "2KTNGO won by resignation"]

1. d4 {[%clk 0:02:56.4]} 1... f5 {[%clk 0:02:59.7]} 2. Nf3 {[%clk 0:02:56.5]}
2... Nf6 {[%clk 0:02:59.6]} 3. c4 {[%clk 0:02:56.8]} 3... g6 {[%clk 0:02:58.9]}
4. Nc3 {[%clk 0:02:56.8]} 4... Bg7 {[%clk 0:02:57.2]} 5. g3 {[%clk 0:02:56.8]}
5... O-O {[%clk 0:02:56.6]} 6. Bg2 {[%clk 0:02:57.4]} 6... d6 {[%clk 0:02:56.3]}
7. d5 {[%clk 0:02:57.9]} 7... a5 {[%clk 0:02:54.9]} 8. Nd4 {[%clk 0:02:57.3]}
8... Na6 {[%clk 0:02:54]} 9. O-O {[%clk 0:02:56.2]} 9... Nc5 {[%clk 0:02:53.9]}
10. b3 {[%clk 0:02:52]} 10... Bd7 {[%clk 0:02:52.6]} 11. Bb2 {[%clk 0:02:50.9]}
11... Qe8 {[%clk 0:02:46.2]} 12. Ncb5 {[%clk 0:02:47.4]} 12... Qc8 {[%clk
0:02:37.8]} 13. Rb1 {[%clk 0:02:45.1]} 13... e5 {[%clk 0:02:32.7]} 14. dxe6
{[%clk 0:02:42.3]} 14... Nxe6 {[%clk 0:02:32.6]} 15. Nxe6 {[%clk 0:02:39.7]}
15... Bxe6 {[%clk 0:02:33.1]} 16. Nd4 {[%clk 0:02:40.1]} 16... Bf7 {[%clk
0:02:30]} 17. Qc2 {[%clk 0:02:36.7]} 17... Re8 {[%clk 0:02:28.3]} 18. e3 {[%clk
0:02:36.1]} 18... Ne4 {[%clk 0:02:22.5]} 19. Rfd1 {[%clk 0:02:32.9]} 19... c6
{[%clk 0:02:10.7]} 20. Ne2 {[%clk 0:02:32.5]} 20... Qc7 {[%clk 0:02:08.8]} 21.
Bxg7 {[%clk 0:02:31]} 21... Kxg7 {[%clk 0:02:09.7]} 22. Qb2+ {[%clk 0:02:30.3]}
22... Kg8 {[%clk 0:02:07.9]} 23. Nc3 {[%clk 0:02:23.1]} 23... Nc5 {[%clk
0:01:54.8]} 24. Rd2 {[%clk 0:02:21.4]} 24... Rad8 {[%clk 0:01:52.5]} 25. Rbd1
{[%clk 0:02:21.3]} 25... Rd7 {[%clk 0:01:48]} 26. h4 {[%clk 0:02:18]} 26... Red8
{[%clk 0:01:45.8]} 27. h5 {[%clk 0:02:14.7]} 27... Ne6 {[%clk 0:01:35]} 28. h6
{[%clk 0:02:06]} 28... g5 {[%clk 0:01:02.3]} 29. Ne2 {[%clk 0:02:02.4]} 29...
Bg6 {[%clk 0:01:00.5]} 30. Qf6 {[%clk 0:01:48.7]} 30... Rf8 {[%clk 0:00:57.8]}
31. Qxe6+ {[%clk 0:01:47.2]} 31... Bf7 {[%clk 0:00:57.2]} 32. Qxf5 {[%clk
0:01:44.6]} 1-0

[Event "Early-Titled-Tuesday-Blitz-February-20-2024"]
[Site "Chess.com"]
[Date "2024.02.20"]
[Round "5"]
[White "DarZay"]
[Black "Cubitas"]
[Result "0-1"]
[WhiteElo "2302"]
[BlackElo "2645"]
[TimeControl "180+1"]
[EndTime "8:53:46 PST"]
[Termination "Cubitas won by resignation"]

1. e4 {[%clk 0:02:57.3]} 1... c5 {[%clk 0:03:00.9]} 2. f4 {[%clk 0:02:56.5]}
2... d6 {[%clk 0:03:01]} 3. Nf3 {[%clk 0:02:56.1]} 3... g6 {[%clk 0:03:01.5]} 4.
d4 {[%clk 0:02:55.9]} 4... Bg7 {[%clk 0:02:57.2]} 5. dxc5 {[%clk 0:02:54.6]}
5... Qa5+ {[%clk 0:02:57.1]} 6. Bd2 {[%clk 0:02:50.1]} 6... Qxc5 {[%clk
0:02:57.4]} 7. Nc3 {[%clk 0:02:50.4]} 7... Nf6 {[%clk 0:02:56.3]} 8. Bb5+ {[%clk
0:02:48.5]} 8... Bd7 {[%clk 0:02:55.7]} 9. Bxd7+ {[%clk 0:02:48]} 9... Nbxd7
{[%clk 0:02:56.6]} 10. Qe2 {[%clk 0:02:47.8]} 10... O-O {[%clk 0:02:51.8]} 11.
Be3 {[%clk 0:02:44.5]} 11... Qb4 {[%clk 0:02:47.9]} 12. Bd4 {[%clk 0:02:07.7]}
12... e5 {[%clk 0:02:40.6]} 13. a3 {[%clk 0:02:01.8]} 13... Qa5 {[%clk
0:02:27.9]} 14. b4 {[%clk 0:01:58]} 14... Qc7 {[%clk 0:02:22.9]} 15. fxe5 {[%clk
0:01:39.9]} 15... dxe5 {[%clk 0:02:22]} 16. Nb5 {[%clk 0:01:39.8]} 16... Qc6
{[%clk 0:02:19.7]} 17. Bb2 {[%clk 0:01:24.4]} 17... Nxe4 {[%clk 0:02:15.9]} 18.
c4 {[%clk 0:01:12.8]} 18... Rfc8 {[%clk 0:02:09.2]} 19. Rc1 {[%clk 0:01:11.3]}
19... a6 {[%clk 0:02:07.8]} 20. Nc3 {[%clk 0:01:09.6]} 20... Nxc3 {[%clk
0:02:02.4]} 21. Bxc3 {[%clk 0:01:05.4]} 21... Qxc4 {[%clk 0:02:02]} 22. Qxc4
{[%clk 0:01:05.1]} 22... Rxc4 {[%clk 0:02:01.7]} 23. Nd2 {[%clk 0:01:02.8]}
23... Rc6 {[%clk 0:01:55]} 24. O-O {[%clk 0:01:01.1]} 24... Rac8 {[%clk
0:01:54.2]} 25. Bb2 {[%clk 0:01:01.4]} 25... f5 {[%clk 0:01:49.8]} 26. Rxc6
{[%clk 0:00:58.1]} 26... Rxc6 {[%clk 0:01:50.7]} 27. Nb3 {[%clk 0:00:56.8]}
27... Rc2 {[%clk 0:01:45.4]} 28. Bc1 {[%clk 0:00:52.5]} 28... e4 {[%clk
0:01:44.8]} 29. Na5 {[%clk 0:00:51.3]} 29... b6 {[%clk 0:01:43.2]} 30. Nb7
{[%clk 0:00:51.6]} 30... Bd4+ {[%clk 0:01:42.2]} 31. Kh1 {[%clk 0:00:51.3]}
31... Ne5 {[%clk 0:01:42.3]} 32. Rd1 {[%clk 0:00:49.9]} 32... Nd3 {[%clk
0:01:42.3]} 0-1

[Event "Early-Titled-Tuesday-Blitz-February-20-2024"]
[Site "Chess.com"]
[Date "2024.02.20"]
[Round "5"]
[White "DavidGavrilescu18"]
[Black "ACollins05"]
[Result "1-0"]
[WhiteElo "2769"]
[BlackElo "2567"]
[TimeControl "180+1"]
[EndTime "8:53:52 PST"]
[Termination "DavidGavrilescu18 won by checkmate"]

1. e4 {[%clk 0:03:00.9]} 1... c5 {[%clk 0:02:59.4]} 2. Nf3 {[%clk 0:03:00.8]}
2... d6 {[%clk 0:02:59.5]} 3. d4 {[%clk 0:03:01.3]} 3... cxd4 {[%clk 0:03:00.4]}
4. Qxd4 {[%clk 0:03:02.1]} 4... Nc6 {[%clk 0:02:59.7]} 5. Qe3 {[%clk 0:03:02.3]}
5... Nf6 {[%clk 0:02:59.3]} 6. Be2 {[%clk 0:03:02.5]} 6... g6 {[%clk 0:02:59.2]}
7. O-O {[%clk 0:03:03.2]} 7... Bg7 {[%clk 0:02:59.7]} 8. Rd1 {[%clk 0:03:03.5]}
8... O-O {[%clk 0:02:51.5]} 9. h3 {[%clk 0:03:03.2]} 9... Qb6 {[%clk 0:02:48.2]}
10. Qxb6 {[%clk 0:03:02.9]} 10... axb6 {[%clk 0:02:49.1]} 11. Nc3 {[%clk
0:03:03.6]} 11... Be6 {[%clk 0:02:46.2]} 12. a3 {[%clk 0:03:03.9]} 12... Rfc8
{[%clk 0:02:36.4]} 13. Be3 {[%clk 0:03:03.5]} 13... Nd7 {[%clk 0:02:33.7]} 14.
Nd4 {[%clk 0:02:53.4]} 14... Nxd4 {[%clk 0:02:31.6]} 15. Bxd4 {[%clk 0:02:54.3]}
15... Nc5 {[%clk 0:02:27.4]} 16. Bxg7 {[%clk 0:02:52.1]} 16... Kxg7 {[%clk
0:02:27.4]} 17. Rd4 {[%clk 0:02:52.7]} 17... Nd7 {[%clk 0:02:20.2]} 18. Rad1
{[%clk 0:02:50.6]} 18... Ne5 {[%clk 0:02:13.7]} 19. Rb4 {[%clk 0:02:49.8]} 19...
Bc4 {[%clk 0:02:03.6]} 20. Bxc4 {[%clk 0:02:44.8]} 20... Nxc4 {[%clk 0:02:04.5]}
21. Rd4 {[%clk 0:02:44.1]} 21... Nxb2 {[%clk 0:01:57.4]} 22. Nd5 {[%clk
0:02:38.9]} 22... Rxc2 {[%clk 0:01:53.1]} 23. Nxe7 {[%clk 0:02:39.4]} 23... Rxa3
{[%clk 0:01:45.4]} 24. Rxb6 {[%clk 0:02:33.5]} 24... Ra1+ {[%clk 0:01:45.3]} 25.
Kh2 {[%clk 0:02:33]} 25... Rxf2 {[%clk 0:01:39.5]} 26. Rxb7 {[%clk 0:02:33.4]}
26... Ra2 {[%clk 0:01:26.8]} 27. Kg3 {[%clk 0:02:28.5]} 27... Rc2 {[%clk
0:01:09.2]} 28. Rb8 {[%clk 0:02:07.7]} 28... Nc4 {[%clk 0:00:50.5]} 29. Kh4
{[%clk 0:02:07.6]} 29... Rxg2 {[%clk 0:00:20.5]} 30. Rxc4 {[%clk 0:02:05.7]}
30... Ra3 {[%clk 0:00:20.6]} 31. Rg8+ {[%clk 0:02:05.1]} 31... Kf6 {[%clk
0:00:20.5]} 32. Nd5+ {[%clk 0:02:04.1]} 32... Ke5 {[%clk 0:00:20.7]} 33. Re8#
{[%clk 0:02:01.7]} 1-0

[Event "Early-Titled-Tuesday-Blitz-February-20-2024"]
[Site "Chess.com"]
[Date "2024.02.20"]
[Round "5"]
[White "karinachess1"]
[Black "nicolasbatista3"]
[Result "1-0"]
[WhiteElo "2664"]
[BlackElo "2417"]
[TimeControl "180+1"]
[EndTime "8:53:52 PST"]
[Termination "karinachess1 won by checkmate"]

1. d4 {[%clk 0:03:00.9]} 1... d5 {[%clk 0:02:59.8]} 2. c4 {[%clk 0:03:00.8]}
2... c6 {[%clk 0:03:00.5]} 3. Nf3 {[%clk 0:03:00.6]} 3... Nf6 {[%clk 0:03:01]}
4. g3 {[%clk 0:03:01.1]} 4... e6 {[%clk 0:03:00.2]} 5. Bg2 {[%clk 0:03:01.2]}
5... Be7 {[%clk 0:03:00.6]} 6. Nc3 {[%clk 0:03:00.1]} 6... O-O {[%clk
0:03:00.6]} 7. Qd3 {[%clk 0:03:00.5]} 7... b6 {[%clk 0:02:57.4]} 8. b3 {[%clk
0:03:00.9]} 8... Ba6 {[%clk 0:02:56]} 9. O-O {[%clk 0:03:00.4]} 9... Nbd7 {[%clk
0:02:54.6]} 10. e4 {[%clk 0:02:52]} 10... b5 {[%clk 0:02:34.6]} 11. cxd5 {[%clk
0:02:36.9]} 11... cxd5 {[%clk 0:02:20.3]} 12. e5 {[%clk 0:02:34.3]} 12... Ne4
{[%clk 0:02:02.5]} 13. Nxe4 {[%clk 0:02:20.9]} 13... dxe4 {[%clk 0:02:03.4]} 14.
Qxe4 {[%clk 0:02:21.8]} 14... b4 {[%clk 0:02:02.8]} 15. Rd1 {[%clk 0:02:15.6]}
15... Nb6 {[%clk 0:02:02.8]} 16. h4 {[%clk 0:02:12.5]} 16... h6 {[%clk
0:02:02.3]} 17. Qg4 {[%clk 0:02:07]} 17... Kh8 {[%clk 0:01:53.9]} 18. Qh5 {[%clk
0:02:06.5]} 18... Be2 {[%clk 0:01:45.5]} 19. Bxh6 {[%clk 0:01:56.9]} 19... Bxd1
{[%clk 0:01:37.4]} 20. Rxd1 {[%clk 0:01:46.2]} 20... Kg8 {[%clk 0:01:34.4]} 21.
Qg4 {[%clk 0:01:38.8]} 21... g6 {[%clk 0:01:23.7]} 22. h5 {[%clk 0:01:37.4]}
22... g5 {[%clk 0:01:21.2]} 23. Nxg5 {[%clk 0:01:30.7]} 23... Kh8 {[%clk
0:00:58.5]} 24. Nxe6 {[%clk 0:01:17.6]} 24... Rg8 {[%clk 0:00:53]} 25. Bg7+
{[%clk 0:01:17.2]} 25... Kh7 {[%clk 0:00:51]} 26. Qf5# {[%clk 0:01:14.7]} 1-0